bitfinex/quotes_BTCUSD_20250109
["timestamp","ask_amount","ask_price","bid_price","bid_amount"]
[1736455107174,0.1,91523.0,91510.0,0.10429976]
[1736455107649,0.1,91523.0,91510.0,0.09529974]
[1736455107650,0.218534,91519.0,91510.0,0.09529974]
[1736455107827,0.318525,91523.0,91510.0,0.09529974]
[1736455108061,0.1,91523.0,91511.0,0.218552]
[1736455108265,0.1,91523.0,91512.0,0.10429976]
[1736455108682,0.218529,91521.0,91512.0,0.10429976]
[1736455108892,0.218537,91518.0,91512.0,0.10429976]
[1736455109379,0.218537,91518.0,91509.0,0.5419]
[1736455109622,0.218537,91518.0,91510.0,0.10429976]
[1736455109848,0.1,91508.0,91507.0,0.00049941]
[1736455111000,0.12320252,91508.0,91507.0,0.00049941]
[1736455112711,0.218584,91498.0,91491.0,8.5e-05]
[1736455112921,0.218584,91498.0,91492.0,0.10429976]
[1736455113130,0.218594,91494.0,91491.0,0.00023408]
[1736455113376,0.218598,91492.0,91491.0,0.00023408]
[1736455113586,0.1,91493.0,91491.0,0.00023408]
[1736455114012,0.218598,91492.0,91491.0,0.00023408]
[1736455114225,0.2723172,91492.0,91478.0,0.20903548]
[1736455114442,0.2723172,91492.0,91477.0,0.53357009]
[1736455114443,0.218598,91492.0,91479.0,0.10429976]
[1736455114661,0.04175627,91493.0,91479.0,0.10429976]
[1736455115060,0.218594,91494.0,91479.0,0.10429976]
[1736455115274,0.04175627,91493.0,91479.0,0.10429976]
[1736455116106,0.218598,91492.0,91479.0,0.10429976]
[1736455116331,0.218576,91501.0,91479.0,0.10429976]
[1736455116534,0.04175627,91500.0,91479.0,0.10429976]
[1736455116990,0.04175627,91500.0,91480.0,0.53357009]
[1736455117204,0.02403999,91501.0,91481.0,0.10429976]
[1736455117421,0.02403999,91501.0,91484.0,0.023]
[1736455117654,0.218564,91506.0,91490.0,0.20960198]
[1736455117869,0.218564,91506.0,91491.0,0.10429976]
[1736455118137,0.36869553,91514.0,91491.0,0.10429976]
[1736455118138,0.04175627,91510.0,91491.0,0.10429976]
[1736455118347,0.24232486,91514.0,91497.0,0.1284]
[1736455118562,0.02377886,91514.0,91498.0,0.63786985]
[1736455118773,0.02377886,91514.0,91499.0,0.01228]
[1736455118774,0.00014953,91514.0,91499.0,0.01228]
[1736455118980,0.00014953,91514.0,91505.0,0.218566]
[1736455119181,0.00014953,91514.0,91506.0,0.10429976]
[1736455119835,0.00014953,91514.0,91507.0,0.218562]
[1736455120050,0.00014953,91514.0,91508.0,0.10429976]
[1736455120317,0.00014953,91514.0,91509.0,0.437114]
[1736455120584,0.00014953,91514.0,91511.0,0.218552]
[1736455120814,0.00014953,91514.0,91513.0,0.218548]
[1736455121049,0.00014953,91514.0,91513.0,0.34584776]
[1736455122151,0.00014953,91514.0,91513.0,0.32284776]
[1736455122589,0.00014953,91514.0,91513.0,0.10429976]
[1736455123635,0.00014953,91514.0,91513.0,0.09529974]
[1736455123848,0.00014953,91514.0,91513.0,0.11829974]
[1736455124269,0.00014953,91514.0,91513.0,0.09529974]
[1736455124957,0.00014953,91514.0,91513.0,0.62886983]
[1736455125402,0.00014953,91514.0,91513.0,0.76723683]
[1736455126086,0.00014953,91514.0,91513.0,0.74423683]
[1736455126295,0.00014953,91514.0,91513.0,0.71016983]
[1736455127792,0.00014953,91514.0,91513.0,0.70116981]
[1736455128008,0.00014953,91514.0,91513.0,0.61986981]
[1736455132783,0.00014953,91514.0,91513.0,0.61086979]
[1736455133011,0.218477,91543.0,91515.0,0.023]
[1736455133241,0.0004987,91534.0,91525.0,0.218518]
[1736455133470,0.0004987,91534.0,91526.0,0.10429976]
[1736455133891,0.218501,91533.0,91526.0,0.10429976]
[1736455134560,0.218511,91529.0,91526.0,0.10429976]
[1736455134984,0.218501,91533.0,91526.0,0.10429976]
[1736455135398,0.218496,91535.0,91526.0,0.10429976]
[1736455135839,0.02160371,91551.0,91526.0,0.10429976]
[1736455135840,0.00014955,91551.0,91530.0,0.023]
[1736455136068,0.00014955,91551.0,91546.0,0.218468]
[1736455136276,0.00014955,91551.0,91548.0,0.218464]
[1736455136486,0.00014955,91551.0,91549.0,0.1053919]
[1736455136906,0.00014955,91551.0,91549.0,0.10429976]
[1736455137326,0.00014955,91551.0,91550.0,0.218459]
[1736455137504,0.00014955,91551.0,91550.0,0.32275876]
[1736455137766,0.00014955,91551.0,91550.0,0.31375874]
[1736455139044,0.00239633,91564.0,91550.0,0.31375874]
[1736455139221,0.218428,91563.0,91552.0,0.218455]
[1736455139431,0.218428,91563.0,91553.0,0.10429976]
[1736455141251,0.0001702,91566.0,91554.0,0.0819]
[1736455141477,0.0001702,91566.0,91565.0,0.218424]
[1736455141676,0.0001702,91566.0,91565.0,0.87929385]
[1736455141898,0.0001702,91566.0,91565.0,1.02929385]
[1736455142079,0.0001702,91566.0,91565.0,1.11119385]
[1736455142703,0.0001702,91566.0,91565.0,1.10219383]
[1736455142907,0.0001702,91566.0,91565.0,1.11447383]
[1736455143819,0.03275253,91596.0,91565.0,1.11447383]
[1736455143820,0.03275253,91596.0,91595.0,0.218352]
[1736455144019,0.03290205,91596.0,91595.0,0.41479176]
[1736455144425,0.03290205,91596.0,91595.0,0.97136185]
[1736455145625,0.03290205,91596.0,91595.0,0.63786985]
[1736455146434,0.03290205,91596.0,91595.0,0.53357009]
[1736455147687,0.03290205,91596.0,91595.0,0.52457007]
[1736455147941,0.218354,91594.0,91588.0,0.01224]
[1736455148203,0.218362,91591.0,91589.0,0.10429976]
[1736455148440,0.436724,91591.0,91588.0,0.01224]
[1736455148659,0.05391341,91596.0,91578.0,0.01224]
[1736455148813,0.218372,91587.0,91579.0,0.10429976]
[1736455149398,0.05391341,91596.0,91580.0,0.00109182]
[1736455149596,0.05391341,91596.0,91581.0,0.1176315]
[1736455150491,0.218355,91594.0,91581.0,0.1176315]
[1736455150701,0.218366,91590.0,91581.0,0.11653976]
[1736455150906,0.218366,91590.0,91581.0,0.10429976]
[1736455151137,0.218375,91586.0,91581.0,0.10429976]
[1736455151371,0.05391341,91596.0,91581.0,0.10429976]
[1736455151590,0.05391341,91596.0,91586.0,0.218373]
[1736455151799,0.05391341,91596.0,91587.0,0.10429976]
[1736455152230,0.03290205,91596.0,91588.0,0.00109174]
[1736455152428,0.03290205,91596.0,91594.0,0.218353]
[1736455152640,0.03290205,91596.0,91595.0,0.09529974]
[1736455154611,0.03290205,91596.0,91595.0,0.76926147]
[1736455154837,0.03290205,91596.0,91595.0,0.76816981]
[1736455155051,0.03290205,91596.0,91595.0,0.91816981]
[1736455156103,0.03290205,91596.0,91595.0,1.01816981]
[1736455156319,0.0001702,91602.0,91600.0,0.1]
[1736455156587,0.0001702,91626.0,91604.0,0.25]
[1736455156791,0.0001702,91626.0,91603.0,0.1]
[1736455156792,0.0001702,91626.0,91620.0,0.241292]
[1736455157004,0.0001702,91626.0,91620.0,0.34559176]
[1736455157210,0.0001702,91626.0,91620.0,0.32259176]
[1736455157608,0.0001702,91626.0,91620.0,0.31359174]
[1736455157819,0.0001702,91626.0,91620.0,0.10429976]
[1736455158022,0.0001702,91626.0,91620.0,0.11653976]
[1736455158236,0.0001702,91626.0,91620.0,0.11763101]
[1736455158654,0.0001702,91626.0,91620.0,0.14063101]
[1736455159287,0.0001702,91626.0,91620.0,0.07154723]
[1736455159507,0.218306,91615.0,91612.0,0.09713519]
[1736455159962,0.218306,91615.0,91610.0,0.09713519]
[1736455160188,0.218306,91615.0,91610.0,0.20143495]
[1736455160826,0.218295,91619.0,91610.0,0.20143495]
[1736455161058,0.0001702,91621.0,91611.0,0.10429976]
[1736455161268,0.0001702,91621.0,91612.0,0.218312]
[1736455161516,0.218292,91620.0,91613.0,0.10429976]
[1736455161733,0.218304,91616.0,91605.0,0.218328]
[1736455161945,0.0001702,91621.0,91607.0,0.218323]
[1736455162155,0.218292,91620.0,91609.0,0.218319]
[1736455162377,0.0001702,91621.0,91615.0,0.218303]
[1736455162592,0.0001702,91621.0,91617.0,0.2183]
[1736455162803,0.0001702,91621.0,91619.0,0.218295]
[1736455163012,0.0001702,91621.0,91620.0,0.11763101]
[1736455163248,0.0001702,91621.0,91612.0,0.52457007]
[1736455163457,0.0001702,91621.0,91615.0,0.09713519]
[1736455163668,0.0001702,91621.0,91615.0,0.20143495]
[1736455163883,0.0001702,91621.0,91616.0,0.10539118]
[1736455164102,0.0001702,91621.0,91617.0,0.436599]
[1736455164338,0.0001702,91621.0,91619.0,0.218295]
[1736455164553,0.0001702,91621.0,91620.0,0.10429976]
[1736455165668,0.0001702,91621.0,91620.0,0.07154723]
[1736455166801,0.0001702,91621.0,91613.0,0.24283799]
[1736455166802,0.0001702,91621.0,91619.0,0.09712513]
[1736455167022,0.218292,91620.0,91619.0,0.09712513]
[1736455167238,0.368292,91620.0,91619.0,0.09712513]
[1736455167469,0.21831,91613.0,91610.0,0.09712513]
[1736455167683,0.21831,91613.0,91610.0,0.08812511]
[1736455167900,0.43662,91613.0,91610.0,0.08812511]
[1736455168319,0.218338,91601.0,91593.0,0.01224]
[1736455168527,0.218338,91601.0,91596.0,0.10429976]
[1736455168764,0.218338,91601.0,91592.0,0.14570279]
[1736455168765,0.218354,91594.0,91592.0,0.14570279]
[1736455169186,0.218354,91594.0,91593.0,0.14570279]
[1736455169609,0.368354,91594.0,91593.0,0.08019479]
[1736455169822,0.368354,91594.0,91576.0,0.03652279]
[1736455169823,0.368395,91577.0,91576.0,0.03652279]
[1736455170697,0.218443,91557.0,91549.0,0.19427039]
[1736455170906,0.218443,91557.0,91550.0,0.10429976]
[1736455171825,0.218455,91552.0,91545.0,0.0778]
[1736455172049,0.218465,91548.0,91545.0,0.00014952]
[1736455172466,0.43693,91548.0,91545.0,0.00014952]
[1736455172678,0.218486,91539.0,91538.0,0.70998996]
[1736455172890,0.218477,91543.0,91538.0,0.51586912]
[1736455175206,0.218465,91548.0,91538.0,0.62016888]
[1736455175430,0.02679865,91549.0,91539.0,0.10429976]
[1736455175671,0.218453,91553.0,91539.0,0.10539204]
[1736455175884,0.24555162,91553.0,91539.0,0.10539204]
[1736455176326,0.218457,91551.0,91539.0,0.10429976]
[1736455177625,0.218457,91551.0,91539.0,0.09529974]
[1736455179149,0.02709862,91553.0,91541.0,0.218481]
[1736455179354,0.218467,91547.0,91541.0,0.10429976]
[1736455179599,0.218477,91543.0,91538.0,0.00014955]
[1736455179905,0.218469,91547.0,91538.0,0.00014955]
[1736455180352,0.436938,91547.0,91538.0,0.00014955]
[1736455180564,0.218478,91543.0,91538.0,0.00014955]
[1736455181002,0.218452,91553.0,91539.0,0.10429976]
[1736455181233,0.218439,91559.0,91546.0,0.218468]
[1736455181441,0.0368391,91576.0,91540.0,0.73420157]
[1736455181442,0.0368391,91576.0,91540.0,0.218482]
[1736455181671,0.218456,91552.0,91541.0,0.10429976]
[1736455181890,0.218434,91561.0,91541.0,0.10429976]
[1736455182141,0.218434,91561.0,91542.0,0.00109226]
[1736455182340,0.218434,91561.0,91547.0,0.218464]
[1736455182550,0.02683926,91576.0,91549.0,0.69851933]
[1736455182768,0.218385,91582.0,91551.0,0.023]
[1736455182981,0.218385,91582.0,91567.0,0.218418]
[1736455183198,0.218385,91582.0,91567.0,0.33491776]
[1736455183420,0.218385,91582.0,91567.0,0.11649976]
[1736455183597,0.15,91593.0,91567.0,0.10749974]
[1736455183799,0.10559938,91592.0,91567.0,0.0122]
[1736455184020,0.15,91591.0,91567.0,0.0122]
[1736455184231,0.218411,91571.0,91567.0,0.0122]
[1736455184652,0.436822,91571.0,91567.0,0.0122]
[1736455185061,0.218411,91571.0,91567.0,0.0122]
[1736455185280,0.218384,91582.0,91567.0,0.11649976]
[1736455185498,0.218376,91585.0,91573.0,0.218404]
[1736455185715,0.00014941,91591.0,91575.0,0.2184]
[1736455185929,0.00014941,91591.0,91587.0,0.73409057]
[1736455186141,0.00014941,91591.0,91588.0,0.10429976]
[1736455186351,0.00014941,91591.0,91589.0,0.218366]
[1736455186593,0.00014941,91591.0,91590.0,0.10429976]
[1736455187705,0.00014941,91591.0,91590.0,0.09529974]
[1736455189039,0.00014941,91591.0,91590.0,0.11939139]
[1736455189908,0.00014941,91591.0,91590.0,0.09529974]
[1736455191155,0.00014941,91591.0,91589.0,0.0974127]
[1736455191361,0.00014941,91591.0,91589.0,0.10429976]
[1736455191780,0.00014941,91591.0,91590.0,0.10429976]
[1736455192758,0.00014941,91591.0,91590.0,0.09529974]
[1736455194026,0.00014941,91591.0,91590.0,0.11939144]
[1736455194225,0.00014941,91591.0,91590.0,0.20029144]
[1736455194433,0.00014941,91591.0,91590.0,0.71601101]
[1736455194569,0.00014941,91591.0,91590.0,0.71491931]
[1736455194828,0.00014941,91591.0,91590.0,0.74850289]
[1736455195397,0.00014941,91591.0,91590.0,1.09277328]
[1736455195799,0.00014941,91591.0,91590.0,0.9091897]
[1736455196075,0.00014941,91591.0,91590.0,0.8983897]
[1736455196487,0.00014941,91591.0,91590.0,0.70411931]
[1736455197074,0.00014941,91591.0,91590.0,0.80157566]
[1736455197496,0.0001702,91621.0,91591.0,0.51571957]
[1736455197709,0.218319,91609.0,91597.0,0.218346]
[1736455197841,0.03275253,91596.0,91594.0,0.10429976]
[1736455198061,0.03275253,91596.0,91588.0,0.09745635]
[1736455198265,0.03275253,91596.0,91589.0,0.10429976]
[1736455198466,0.218352,91595.0,91589.0,0.10429976]
[1736455198891,0.218373,91587.0,91578.0,0.50671955]
[1736455199097,0.06512943,91596.0,91575.0,0.09745635]
[1736455199304,0.218397,91576.0,91575.0,0.09745635]
[1736455199562,0.15,91592.0,91568.0,0.0122]
[1736455199765,0.218408,91572.0,91568.0,0.0122]
[1736455200214,0.436816,91572.0,91568.0,0.01234941]
[1736455200462,0.218412,91570.0,91568.0,0.00014941]
[1736455200960,0.218394,91578.0,91568.0,0.00014941]
[1736455201236,0.218403,91574.0,91568.0,0.00014941]
[1736455201442,0.21839,91580.0,91569.0,0.10429976]
[1736455201870,0.218379,91584.0,91570.0,0.218412]
[1736455202081,0.218389,91580.0,91570.0,0.10429976]
[1736455202544,0.436778,91580.0,91570.0,0.09529974]
[1736455202757,0.0436778,91580.0,91568.0,0.00014941]
[1736455202977,0.436819,91571.0,91568.0,0.00014941]
[1736455203208,0.368414,91569.0,91568.0,0.00014941]
[1736455205373,0.40178779,91569.0,91568.0,0.00014941]
[1736455205598,0.03337379,91569.0,91568.0,0.00014941]
[1736455205810,0.0783,91600.0,91568.0,0.00014941]
[1736455206040,0.0783,91600.0,91575.0,0.0833]
[1736455206041,0.06664546,91596.0,91575.0,0.0833]
[1736455206254,0.06664546,91596.0,91580.0,0.218386]
[1736455206255,0.218352,91595.0,91580.0,0.218386]
[1736455206483,0.03275253,91596.0,91590.0,0.218364]
[1736455206691,0.03275253,91596.0,91594.0,0.218352]
[1736455206907,0.03275253,91596.0,91595.0,0.62317931]
[1736455207130,0.03275253,91596.0,91595.0,0.77437931]
[1736455207364,0.03275253,91596.0,91595.0,0.92437931]
[1736455207626,0.03275253,91596.0,91595.0,0.76537929]
[1736455209000,0.03275253,91596.0,91595.0,0.96036904]
[1736455209426,0.0001702,91626.0,91620.0,0.218292]
[1736455209641,0.0001702,91626.0,91620.0,0.10429976]
[1736455210095,0.0001702,91626.0,91620.0,0.10539109]
[1736455210278,0.0001702,91626.0,91620.0,0.63511064]
[1736455210483,0.0001702,91626.0,91620.0,0.63401931]
[1736455210700,0.00031967,91621.0,91620.0,0.60126678]
[1736455210905,0.00031967,91621.0,91620.0,0.66056678]
[1736455211104,0.00031967,91621.0,91620.0,0.67272678]
[1736455212568,0.00031967,91621.0,91620.0,0.50671955]
[1736455212798,0.00031967,91621.0,91620.0,0.60201929]
[1736455213248,0.00031967,91621.0,91620.0,0.82031129]
[1736455215204,0.00031967,91621.0,91620.0,0.49771953]
[1736455217204,0.00031967,91621.0,91620.0,0.464967]
[1736455217611,0.00031967,91621.0,91620.0,0.45596698]
[1736455218078,0.00031967,91621.0,91620.0,0.56026674]
[1736455220350,0.00031967,91621.0,91620.0,0.25429976]
[1736455220551,0.00031967,91621.0,91620.0,0.50289976]
[1736455220781,0.00031967,91621.0,91620.0,0.95886674]
[1736455220993,0.0001702,91626.0,91625.0,0.023]
[1736455221201,0.00066831,91626.0,91625.0,0.49667176]
[1736455221396,0.00066831,91626.0,91625.0,0.49558076]
[1736455222077,0.00017,91633.0,91628.0,0.15]
[1736455222293,0.00017,91633.0,91632.0,0.32256376]
[1736455222533,0.00017,91633.0,91632.0,0.34556376]
[1736455222783,0.00017,91633.0,91632.0,0.33656374]
[1736455223877,7.544e-05,91633.0,91632.0,0.30381121]
[1736455224714,7.544e-05,91633.0,91632.0,0.33690527]
[1736455224971,7.544e-05,91633.0,91632.0,0.94287225]
[1736455225188,0.0001702,91663.0,91642.0,0.56764]
[1736455225400,2e-07,91643.0,91642.0,1.24006674]
[1736455225616,0.0001702,91663.0,91642.0,1.24006674]
[1736455225617,0.0001702,91663.0,91651.0,0.491219]
[1736455225839,0.0001702,91663.0,91656.0,0.94717398]
[1736455226046,2e-07,91663.0,91662.0,0.80596698]
[1736455226275,2e-07,91663.0,91662.0,1.00966674]
[1736455226491,0.218056,91720.0,91675.0,0.436322]
[1736455226740,0.218056,91720.0,91678.0,0.25429976]
[1736455227013,0.218067,91715.0,91678.0,0.27729976]
[1736455227539,0.218046,91724.0,91678.0,0.47729976]
[1736455228023,0.218057,91719.0,91678.0,0.47729976]
[1736455228467,0.218057,91719.0,91678.0,0.41747717]
[1736455228708,0.218024,91733.0,91678.0,0.51747717]
[1736455228977,0.218024,91733.0,91712.0,0.218073]
[1736455229178,0.00031957,91713.0,91712.0,0.33453276]
[1736455229802,0.00031957,91713.0,91712.0,0.52862424]
[1736455230265,0.00031957,91713.0,91712.0,0.51887171]
[1736455230474,0.00031957,91713.0,91712.0,0.47021298]
[1736455231090,0.0001702,91735.0,91720.0,0.218054]
[1736455231333,0.218021,91734.0,91722.0,0.21805]
[1736455231526,0.00066782,91735.0,91724.0,0.218045]
[1736455231733,0.00066782,91735.0,91725.0,0.32343281]
[1736455231944,0.218021,91734.0,91725.0,0.10429976]
[1736455232139,0.218021,91734.0,91726.0,0.01216]
[1736455232353,0.218035,91729.0,91719.0,0.09687688]
[1736455232571,0.00066782,91735.0,91723.0,0.01216]
[1736455232731,0.218021,91734.0,91724.0,0.10429976]
[1736455233194,0.21868682,91735.0,91724.0,0.10429976]
[1736455233560,0.00066782,91735.0,91724.0,0.32234476]
[1736455233767,0.00066782,91735.0,91717.0,0.09687688]
[1736455233978,0.00066782,91735.0,91721.0,0.01216]
[1736455234189,0.218043,91725.0,91718.0,0.10429976]
[1736455234439,0.218027,91732.0,91719.0,0.01216]
[1736455234639,0.218021,91734.0,91720.0,0.32235376]
[1736455235053,0.218034,91729.0,91720.0,0.10429976]
[1736455235907,0.00066782,91735.0,91712.0,0.09687688]
[1736455235908,0.218052,91721.0,91712.0,0.09687688]
[1736455236118,0.218056,91720.0,91712.0,0.09687688]
[1736455236544,0.00066782,91735.0,91713.0,0.10539002]
[1736455236772,0.00066782,91735.0,91708.0,0.09687688]
[1736455236773,0.00066782,91735.0,91722.0,0.21805]
[1736455236983,0.00066782,91735.0,91724.0,0.32234476]
[1736455237652,0.00066782,91735.0,91734.0,0.20902098]
[1736455237918,0.00066782,91735.0,91734.0,0.32540074]
[1736455238393,0.21362882,91760.0,91747.0,0.21799]
[1736455238631,0.21377807,91760.0,91748.0,0.10429976]
[1736455238845,0.21377807,91760.0,91749.0,0.217986]
[1736455239059,0.21377807,91760.0,91755.0,0.217971]
[1736455239060,0.00014925,91760.0,91755.0,0.217971]
[1736455239309,0.00014925,91760.0,91757.0,0.435934]
[1736455239519,0.00014925,91760.0,91759.0,0.217962]
[1736455239727,0.00014925,91760.0,91759.0,0.32226176]
[1736455242378,0.00014925,91760.0,91759.0,0.10429976]
[1736455242810,0.00014925,91760.0,91756.0,0.01208]
[1736455243036,0.21810925,91760.0,91749.0,0.0799]
[1736455243249,0.21797,91756.0,91752.0,0.01208]
[1736455243460,0.21797,91756.0,91750.0,0.10429976]
[1736455243677,0.217979,91752.0,91744.0,0.01208]
[1736455243901,0.21797,91756.0,91745.0,0.10429976]
[1736455244757,0.00014925,91760.0,91745.0,0.10429976]
[1736455244984,0.00014925,91760.0,91754.0,0.217971]
[1736455245225,0.00014925,91760.0,91758.0,0.217962]
[1736455245436,0.00014925,91760.0,91758.0,0.32226176]
[1736455245672,0.00014925,91760.0,91758.0,0.10429976]
[1736455246321,0.00014925,91760.0,91759.0,0.32226176]
[1736455247699,0.00014925,91760.0,91759.0,0.31326174]
[1736455248097,0.00014925,91760.0,91752.0,0.217978]
[1736455248333,0.02832611,91771.0,91757.0,0.01208]
[1736455248334,0.217946,91766.0,91757.0,0.01208]
[1736455248535,0.217946,91766.0,91757.0,0.11637976]
[1736455249326,0.217946,91766.0,91743.0,0.218]
[1736455249327,0.217965,91758.0,91743.0,0.218]
[1736455249581,0.217965,91758.0,91749.0,0.00014925]
[1736455249818,0.217965,91758.0,91750.0,0.10429976]
[1736455250828,0.217954,91763.0,91750.0,0.10429976]
[1736455251034,0.02832611,91771.0,91750.0,0.10429976]
[1736455251249,0.24626111,91771.0,91757.0,0.217964]
[1736455251481,0.02832611,91771.0,91761.0,0.217956]
[1736455251708,0.02832611,91771.0,91763.0,0.217952]
[1736455251917,0.02832611,91771.0,91764.0,0.10429976]
[1736455252392,8.5e-05,91771.0,91766.0,0.217945]
[1736455252613,8.5e-05,91771.0,91767.0,0.10429976]
[1736455252797,8.5e-05,91771.0,91767.0,0.09529974]
[1736455253260,8.5e-05,91771.0,91769.0,0.217936]
[1736455253465,8.5e-05,91771.0,91770.0,0.10429976]
[1736455255203,0.0286233,91793.0,91771.0,0.173]
[1736455255421,0.0286233,91793.0,91792.0,0.217883]
[1736455255422,8.5e-05,91793.0,91792.0,0.217883]
[1736455255771,8.5e-05,91793.0,91792.0,0.32218276]
[1736455256012,8.5e-05,91793.0,91792.0,0.28943917]
[1736455256413,8.5e-05,91793.0,91792.0,0.11637976]
[1736455256797,0.00023417,91793.0,91792.0,0.11637976]
[1736455257176,0.00023417,91793.0,91792.0,0.10429976]
[1736455257378,0.00023417,91793.0,91792.0,0.11637976]
[1736455257717,0.00023417,91793.0,91792.0,0.10737974]
[1736455260258,0.00023417,91793.0,91786.0,0.217895]
[1736455260505,0.00023417,91793.0,91788.0,0.217893]
[1736455261633,0.00023417,91793.0,91790.0,0.217888]
[1736455261868,0.00023417,91793.0,91792.0,0.217883]
[1736455262067,0.00023417,91793.0,91792.0,0.32218276]
[1736455262522,0.00023417,91793.0,91792.0,0.41928238]
[1736455262753,0.00023417,91793.0,91792.0,0.41028236]
[1736455263181,0.00023417,91793.0,91792.0,0.48588236]
[1736455263385,0.00023417,91793.0,91792.0,0.56282129]
[1736455263802,0.0001702,91805.0,91792.0,0.56282129]
[1736455263803,0.0001702,91805.0,91804.0,0.367855]
[1736455264012,0.217762,91844.0,91804.0,0.367855]
[1736455264013,8.5e-05,91858.0,91807.0,0.1972]
[1736455264270,0.00049744,91848.0,91846.0,0.10429976]
[1736455264492,0.00049744,91848.0,91847.0,0.6436749]
[1736455264823,8.5e-05,91858.0,91857.0,0.367729]
[1736455265041,8.5e-05,91858.0,91857.0,0.49502876]
[1736455265271,0.00023413,91858.0,91857.0,0.7288109]
[1736455265485,0.00023413,91858.0,91857.0,0.6288109]
[1736455265701,0.00023413,91858.0,91857.0,0.7288109]
[1736455265910,0.00023413,91858.0,91857.0,0.53075058]
[1736455266131,0.00023413,91858.0,91857.0,0.48406876]
[1736455266633,0.00023413,91858.0,91857.0,0.47202876]
[1736455266906,0.00023413,91858.0,91857.0,0.10429976]
[1736455267184,0.00023413,91858.0,91854.0,0.4390811]
[1736455267439,0.00023413,91858.0,91854.0,0.33407376]
[1736455267693,0.00023413,91858.0,91855.0,0.20873398]
[1736455267953,0.00023413,91858.0,91854.0,0.01204]
[1736455268174,0.217729,91857.0,91853.0,0.09642141]
[1736455268388,0.435459,91857.0,91851.0,0.09642141]
[1736455268568,0.217734,91855.0,91851.0,0.09642141]
[1736455268819,0.217736,91854.0,91851.0,0.063726]
[1736455269253,0.217772,91840.0,91838.0,0.216486]
[1736455269684,0.217761,91844.0,91838.0,0.063726]
[1736455269894,0.217761,91844.0,91830.0,0.47088653]
[1736455269895,0.00023413,91858.0,91840.0,0.21777]
[1736455270073,0.00023413,91858.0,91847.0,0.217751]
[1736455270317,0.00023413,91858.0,91840.0,0.21777]
[1736455270500,0.00023413,91858.0,91841.0,0.01204]
[1736455270671,0.00159507,91858.0,91841.0,0.01204]
[1736455270876,0.217739,91854.0,91836.0,0.217778]
[1736455271081,0.00023413,91858.0,91837.0,0.01204]
[1736455271323,0.217749,91849.0,91839.0,0.14463211]
[1736455272065,0.217749,91849.0,91840.0,0.14463211]
[1736455272281,0.217753,91847.0,91840.0,0.14463211]
[1736455272497,0.217753,91847.0,91836.0,0.01204]
[1736455272498,0.217753,91847.0,91839.0,0.14463211]
[1736455272709,0.435507,91847.0,91839.0,0.13563209]
[1736455273148,0.00023413,91858.0,91836.0,0.20488282]
[1736455273149,0.217775,91838.0,91836.0,0.01204]
[1736455273354,0.15,91854.0,91836.0,0.01204]
[1736455273559,0.21776,91845.0,91836.0,0.01204]
[1736455274205,0.217741,91852.0,91836.0,0.01204]
[1736455274414,0.15,91856.0,91843.0,0.217762]
[1736455274619,0.217734,91855.0,91838.0,0.435548]
[1736455274842,0.217734,91855.0,91820.0,0.043637]
[1736455274843,0.25,91852.0,91830.0,0.19284282]
[1736455275069,0.217788,91833.0,91830.0,0.19284282]
[1736455275278,0.435576,91833.0,91830.0,0.16014741]
[1736455275493,0.435576,91833.0,91809.0,0.217843]
[1736455275494,0.217804,91826.0,91820.0,0.16014741]
[1736455275699,0.1,91840.0,91820.0,0.16014741]
[1736455275700,0.15,91838.0,91820.0,0.16014741]
[1736455275940,0.217814,91822.0,91820.0,0.16014741]
[1736455276370,0.15,91838.0,91820.0,0.16014741]
[1736455276591,0.15,91838.0,91823.0,0.217808]
[1736455276806,0.217779,91836.0,91823.0,0.217808]
[1736455277030,0.00014908,91838.0,91831.0,0.217789]
[1736455277246,0.00014908,91838.0,91835.0,0.21778]
[1736455277458,0.00014908,91838.0,91836.0,0.11633976]
[1736455277707,0.00014908,91838.0,91837.0,0.20877698]
[1736455277932,0.00014908,91838.0,91837.0,0.48607674]
[1736455278354,0.075037,91884.0,91838.0,0.173]
[1736455278562,0.21902556,91884.0,91846.0,0.15]
[1736455278774,0.00023395,91885.0,91847.0,0.10429976]
[1736455279046,0.00136056,91884.0,91866.0,0.217707]
[1736455279267,0.21902656,91884.0,91868.0,0.217703]
[1736455279471,0.00023395,91885.0,91859.0,0.217724]
[1736455279694,0.00136061,91884.0,91867.0,0.01204]
[1736455279912,0.15,91880.0,91867.0,0.01204]
[1736455280336,0.217677,91879.0,91867.0,0.01204]
[1736455280755,0.217689,91874.0,91867.0,0.01204]
[1736455281049,0.217689,91874.0,91862.0,0.01204]
[1736455281249,0.15,91873.0,91862.0,0.01204]
[1736455281768,0.15,91873.0,91855.0,0.217734]
[1736455281769,0.15,91873.0,91860.0,0.07598355]
[1736455282159,0.217695,91872.0,91860.0,0.07598355]
[1736455282370,0.217695,91872.0,91856.0,0.01204]
[1736455282577,0.217705,91868.0,91856.0,0.00303998]
[1736455282759,0.217708,91866.0,91857.0,0.14504924]
[1736455282956,0.217721,91861.0,91857.0,0.14504924]
[1736455283326,0.435442,91861.0,91857.0,0.14504924]
[1736455283936,0.1,91874.0,91848.0,0.14504924]
[1736455284151,0.217734,91856.0,91848.0,0.14504924]
[1736455284765,0.217723,91860.0,91848.0,0.14504924]
[1736455284766,0.27121476,91860.0,91848.0,0.14504924]
[1736455284975,0.15,91851.0,91848.0,0.14504924]
[1736455285186,0.15,91849.0,91843.0,0.14504924]
[1736455285386,0.00136111,91848.0,91843.0,0.14504924]
[1736455285594,0.15,91845.0,91843.0,0.14504924]
[1736455286011,0.15,91842.0,91826.0,0.01253744]
[1736455286225,0.217783,91835.0,91826.0,0.01253744]
[1736455286428,0.217783,91835.0,91826.0,0.00049744]
[1736455287680,0.217783,91835.0,91821.0,0.20931042]
[1736455287886,0.21827973,91835.0,91821.0,0.20931042]
[1736455288325,0.21827973,91835.0,91821.0,0.17661501]
[1736455288528,0.24346446,91835.0,91821.0,0.39442801]
[1736455288955,0.08680511,91835.0,91818.0,0.14504924]
[1736455289170,0.27121476,91830.0,91820.0,0.14504924]
[1736455289376,0.217806,91825.0,91820.0,0.14504924]
[1736455289816,0.435613,91825.0,91820.0,0.14504924]
[1736455290026,0.435613,91825.0,91810.0,0.217839]
[1736455290027,0.435613,91825.0,91813.0,0.14504924]
[1736455290244,0.217796,91829.0,91814.0,0.217831]
[1736455290463,0.217807,91825.0,91814.0,0.217831]
[1736455291121,0.217807,91825.0,91810.0,0.36288824]
[1736455291322,0.217818,91820.0,91810.0,0.36288824]